fUSD/lending_fUSD_20240412
["ID","MTS","AMOUNT","RATE_DAILY","PERIOD"]
[322275213,1712927431682,-245.8,0.00020646,2]
[322275214,1712927431691,-124.57208145,0.00020701,2]
[322275215,1712927431702,-121.22791855,0.00020701,2]
[322275216,1712927431712,-150.0,0.00020755,2]
[322275217,1712927431721,-245.8,0.00020756,2]
[322275218,1712927431731,-264.14,0.00020776,2]
[322275219,1712927431741,-255.6687,0.00020776,2]
[322275220,1712927431750,-2500.0,0.00020776,2]
[322275221,1712927431760,-159.97344465,0.00020778,2]
[322275222,1712927431769,-1252.61963523,0.00020778,2]
[322275223,1712927431779,-1252.61963521,0.00020792,2]
[322275224,1712927431789,-5967.0871,0.00020799,2]
[322275225,1712927431799,-1325.3827,0.00020799,2]
[322275226,1712927431808,-1252.61963521,0.00020805,2]
[322275227,1712927431818,-245.8,0.00020811,2]
[322275228,1712927431827,-1252.61963521,0.00020819,2]
[322275229,1712927431837,-1252.61963521,0.00020832,2]
[322275230,1712927431846,-150.99,0.00020833,2]
[322275231,1712927431855,-1252.61963521,0.00020846,2]
[322275232,1712927431864,-1252.61963521,0.00020859,2]
[322275233,1712927431874,-1827.75324614,0.00020865,2]
[322275234,1712927431883,-245.8,0.00020866,2]
[322275235,1712927431893,-259599.32905229,0.00020872,2]
[322275236,1712927431905,-56553.4304,0.00020872,2]
[322275237,1712927431917,-53018.31950978,0.00020872,2]
[322275238,1712927431941,-1738.0,0.00020872,2]
[322275239,1712927432513,-297.182565,0.00020872,2]
[322275240,1712927432625,-738.64156746,0.00020872,2]
[322275241,1712927432638,-1357.9935,0.00020872,2]
[322275272,1712927437678,-499.99,0.00020755,2]
[322275274,1712927437691,-3215.63433886,0.00020872,2]
[322275323,1712927439111,-5935.70622628,0.00020872,2]
[322275327,1712927439128,-162868.52976132,0.00020872,2]
[322275330,1712927439139,-1252.61963521,0.00020873,2]
[322275334,1712927439150,-1252.61963521,0.00020886,2]
[322275336,1712927439160,-153.74898822,0.00020887,2]
[322275339,1712927439170,-364.0788978,0.00020897,2]
[322275344,1712927439187,-446.46685544,0.00020897,2]
[322275346,1712927439197,-21262.27409256,0.00020897,2]
[322275349,1712927439207,-24675.87077507,0.00020898,2]
[322275351,1712927439217,-175.04655244,0.00020898,2]
[322275352,1712927439227,-175.04655243,0.00020899,2]
[322275354,1712927439237,-5995.1349,0.00020899,2]
[322275356,1712927439246,-326.2319,0.00020899,2]
[322275358,1712927439256,-1551.8456,0.00020899,2]
[322275359,1712927439266,-263.5979,0.00020899,2]
[322275361,1712927439275,-6186.97731092,0.00020899,2]
[322275362,1712927439285,-175.04655243,0.00020899,2]
[322275364,1712927439295,-210.98240875,0.00020899,2]
[322275366,1712927439304,-10773.63,0.00020899,2]
[322275368,1712927439314,-175.04655243,0.000209,2]
[322275369,1712927439323,-173.15760461,0.000209,2]
[322275371,1712927439333,-175.04655243,0.000209,2]
[322275373,1712927439342,-932.74532256,0.000209,2]
[322275375,1712927439352,-1252.61963521,0.000209,2]
[322275376,1712927439361,-537.67685548,0.000209,2]
[322275378,1712927439370,-245.8,0.00020921,2]
[322275380,1712927439380,-245.8,0.00020976,2]
[322275381,1712927439389,-2294.41514339,0.00020979,2]
[322275383,1712927439399,-427.09027107,0.00020988,2]
[322275385,1712927439409,-153.74898822,0.0002099,2]
[322275387,1712927439419,-162.5270178,0.00020995,2]
[322275389,1712927439430,-155.76028404,0.00020995,2]
[322275390,1712927439442,-155.59709199,0.00020996,2]
[322275392,1712927439455,-340.60320597,0.00020998,2]
[322275394,1712927439465,-155.0,0.00020998,2]
[322275396,1712927439475,-1773.93631488,0.00020998,2]
[322275398,1712927439484,-201.50024121,0.00020998,2]
[322275402,1712927439493,-1353.91034995,0.00020998,2]
[322275404,1712927439504,-643.63898191,0.00020998,2]
[322275406,1712927439513,-210.24561399,0.00020998,2]
[322275408,1712927439524,-491.27614108,0.00020998,2]
[322275410,1712927439533,-876.10451555,0.00020998,2]
[322275411,1712927439543,-158.76426366,0.00020998,2]
[322275413,1712927439553,-325.2840826,0.00020998,2]
[322275415,1712927439562,-178.23121329,0.00020998,2]
[322275417,1712927439571,-1864.84962808,0.00020998,2]
[322275418,1712927439581,-201.83660789,0.00020998,2]
[322275420,1712927439590,-246.21167352,0.00020998,2]
[322275422,1712927439599,-402.06051651,0.00020998,2]
[322275424,1712927439609,-298.209,0.00020998,2]
[322275426,1712927439619,-155.44292919,0.00020998,2]
[322275428,1712927439628,-200.3076966,0.00020998,2]
[322275429,1712927439637,-309.68060789,0.00020998,2]
[322275431,1712927439647,-225.32317733,0.00020998,2]
[322275433,1712927439656,-155.7204395,0.00020998,2]
[322275435,1712927439666,-161.37326808,0.00020998,2]
[322275437,1712927439676,-170.96190489,0.00020998,2]
[322275438,1712927439688,-155.0,0.00020998,2]
[322275440,1712927439697,-161.33144773,0.00020998,2]
[322275441,1712927439707,-156.22455142,0.00020998,2]
[322275442,1712927439717,-155.84776155,0.00020998,2]
[322275443,1712927439731,-527.25970917,0.00020998,2]
[322275444,1712927439740,-203.84818034,0.00020998,2]
[322275445,1712927439749,-175.18313507,0.00020998,2]
[322275446,1712927439759,-156.76458102,0.00020998,2]
[322275447,1712927439769,-1241.19748567,0.00020998,2]
[322275448,1712927439779,-155.0,0.00020998,2]
[322275449,1712927439789,-233.35411686,0.00020998,2]
[322275450,1712927439799,-287.85742567,0.00020998,2]
[322275451,1712927439810,-155.1409266,0.00020998,2]
[322275452,1712927439820,-156.305592,0.00020998,2]
[322275453,1712927439829,-155.0,0.00020998,2]
[322275454,1712927439839,-176.4814728,0.00020998,2]
[322275455,1712927439849,-155.000001,0.00020998,2]
[322275456,1712927439859,-306.21067853,0.00020998,2]
[322275457,1712927439868,-3670.75004519,0.00020998,2]
[322275458,1712927439878,-155.48232616,0.00020998,2]
[322275459,1712927439888,-703.7365253,0.00020998,2]
[322275460,1712927439898,-155.0,0.00020998,2]
[322275461,1712927439907,-155.76033637,0.00020998,2]
[322275462,1712927439917,-197.56721179,0.00020998,2]
[322275463,1712927439929,-232.9121669,0.00020998,2]
[322275464,1712927439945,-175.31276833,0.00020998,2]
[322275465,1712927439959,-157.36376777,0.00020998,2]
[322275466,1712927439970,-276.55364781,0.00020998,2]
[322275467,1712927439980,-157.55729644,0.00020998,2]
[322275468,1712927439991,-429.70013749,0.00020998,2]
[322275469,1712927440003,-1297.27092912,0.00020998,2]
[322275470,1712927440014,-308.77579653,0.00020998,2]
[322275471,1712927440024,-2569.03128136,0.00020998,2]
[322275472,1712927440035,-170.29375398,0.00020998,2]
[322275473,1712927440045,-1806.93032331,0.00020998,2]
[322275474,1712927440057,-263.22579993,0.00020998,2]
[322275475,1712927440067,-155.0,0.00020999,2]
[322275476,1712927440077,-195.516325,0.00020999,2]
[322275477,1712927440088,-23985.55231227,0.00020999,2]
[322275478,1712927440098,-2983.86194714,0.00020999,2]
[322275479,1712927440108,-500.0,0.00020999,2]
[322275480,1712927440118,-500.0,0.00020999,2]
[322275481,1712927440128,-500.0,0.00020999,2]
[322275482,1712927440138,-500.0,0.00020999,2]
[322275483,1712927440148,-500.0,0.00020999,2]
[322275484,1712927440158,-500.0,0.00020999,2]
[322275485,1712927440168,-398.9114636,0.00020999,2]
[322275486,1712927440178,-500.0,0.00020999,2]
[322275487,1712927440194,-495.73466688,0.00020999,2]
[322275489,1712927440204,-500.0,0.00020999,2]
[322275490,1712927440214,-500.0,0.00020999,2]
[322275492,1712927440224,-500.0,0.00020999,2]
[322275493,1712927440234,-500.0,0.00020999,2]
[322275494,1712927440245,-252.25301824,0.00020999,2]
[322275495,1712927440255,-500.0,0.00020999,2]
[322275496,1712927440265,-500.0,0.00020999,2]
[322275497,1712927440276,-500.0,0.00020999,2]
[322275498,1712927440286,-500.0,0.00020999,2]
[322275499,1712927440296,-500.0,0.00020999,2]
[322275500,1712927440307,-500.0,0.00020999,2]
[322275501,1712927440317,-500.0,0.00020999,2]
[322275502,1712927440328,-500.0,0.00020999,2]
[322275504,1712927440641,-500.0,0.00020999,2]
[322275505,1712927440651,-500.0,0.00020999,2]
[322275506,1712927440661,-500.0,0.00020999,2]
[322275507,1712927440671,-500.0,0.00020999,2]
[322275508,1712927440680,-500.0,0.00020999,2]
[322275509,1712927440693,-500.0,0.00020999,2]
[322275510,1712927440703,-500.0,0.00020999,2]
[322275511,1712927440713,-500.0,0.00020999,2]
[322275512,1712927440723,-500.0,0.00020999,2]
[322275513,1712927440733,-500.0,0.00020999,2]
[322275514,1712927440742,-500.0,0.00020999,2]
[322275515,1712927440752,-500.0,0.00020999,2]
[322275516,1712927440761,-500.0,0.00020999,2]
[322275517,1712927440771,-500.0,0.00020999,2]
[322275518,1712927440781,-500.0,0.00020999,2]
[322275519,1712927440791,-500.0,0.00020999,2]
[322275520,1712927440801,-500.0,0.00020999,2]
[322275521,1712927440811,-263.578432,0.00020999,2]
[322275522,1712927440820,-500.0,0.00020999,2]
[322275523,1712927440830,-500.0,0.00020999,2]
[322275524,1712927440839,-500.0,0.00020999,2]
[322275525,1712927440850,-599.50166831,0.00020999,2]
[322275526,1712927440859,-500.0,0.00020999,2]
[322275527,1712927440869,-596.9945354,0.00020999,2]
[322275528,1712927440878,-500.0,0.00020999,2]
[322275529,1712927440887,-233.27796314,0.00020999,2]
[322275530,1712927440896,-500.0,0.00020999,2]
[322275531,1712927440906,-550.0,0.00020999,2]
[322275532,1712927440916,-921.84859644,0.00021,2]
[322275533,1712927440928,-12867700.46324817,0.00021,2]
[322275534,1712927440946,-11298804.5582171,0.00021,2]
[322275535,1712927440962,-1205912.02193338,0.00021,2]
[322275536,1712927440972,-716.66440951,0.00021,2]
[322275537,1712927440982,-300287.08258199,0.00021,2]
[322275538,1712927440994,-13603.4,0.00021,2]
[322275539,1712927441009,-2533.59514911,0.00021,2]
[322275540,1712927441021,-7283.63819999,0.00021,2]
[322275541,1712927441035,-3456.02230218,0.00021,2]
[322275542,1712927441050,-4422.33067648,0.00021,2]
[322275543,1712927441061,-19006.2900001,0.00021,2]
[322275544,1712927441074,-9035.21463172,0.00021,2]
[322275545,1712927441086,-7451.94610006,0.00021,2]
[322275546,1712927441098,-13800.0,0.00021,2]
[322275547,1712927441111,-3337.5717888,0.00021,2]
[322275548,1712927441123,-351.03654872,0.00021,2]
[322275549,1712927441136,-7262.73412036,0.00021,2]
[322275550,1712927441148,-7039.4,0.00021,2]
[322275551,1712927441259,-619.88158046,0.00021,2]
[322275552,1712927441272,-384.83468693,0.00021,2]
[322275553,1712927441288,-1513.47448272,0.00021,2]
[322275554,1712927441300,-607.63730262,0.00021,2]
[322275555,1712927441316,-5087.17685057,0.00021,2]
[322275556,1712927441329,-29681.57739325,0.00021,2]
[322275557,1712927441348,-2385845.0889382,0.00021,2]
[322275558,1712927441360,-1873955.8303264,0.00021,2]
[322275559,1712927441370,-250.0,0.00021,3]
[322275560,1712927441380,-658.62,0.00021,2]
[322275561,1712927441390,-504.27,0.00021,2]
[322275562,1712927441399,-245.8,0.00021031,2]
[322275563,1712927441409,-245.8,0.00021086,2]
[322275564,1712927441419,-159.17,0.00021219,2]
[322275565,1712927441429,-167.0,0.00021252,2]
[322275566,1712927441441,-173.4,0.00021453,2]
[322275567,1712927441450,-250.0,0.00021918,2]
[322275568,1712927441460,-250.0,0.00021918,2]
[322275569,1712927441470,-162.09,0.00021918,2]
[322275570,1712927441479,-167.0,0.00021931,2]
[322275571,1712927441488,-783.91365264,0.00022,2]
[322275572,1712927441498,-7722.83977315,0.00022,2]
[322275573,1712927441507,-238.73343253,0.00022,2]
[322275574,1712927441517,-1054.48300694,0.00022,2]
[322275575,1712927441527,-223.92336057,0.0002211,2]
[322275576,1712927441537,-204.82350614,0.000223,2]
[322275577,1712927441546,-200.0,0.00022371,2]
[322275578,1712927441556,-541.08,0.00022441,2]
[322275579,1712927441565,-26577.39256845,0.000225,2]
[322275580,1712927441575,-159.17,0.00022589,2]
[322275581,1712927441588,-2354.3,0.000226,2]
[322275582,1712927441598,-167.0,0.0002261,2]
[322275583,1712927441607,-1000.0,0.00022811,2]
[322275584,1712927441618,-210.0,0.00022831,2]
[322275585,1712927441628,-239.07557141,0.00023,2]
[322275586,1712927441637,-155.0,0.00023,2]
[322275587,1712927441647,-300.0,0.00023,3]
[322275588,1712927441656,-658.62,0.00023,2]
[322275589,1712927441666,-504.27,0.00023,2]
[322275590,1712927441676,-13178.53265337,0.0002301,2]
[322275591,1712927441690,-800.0,0.00023178,2]
[322275592,1712927441700,-173.07,0.00023228,2]
[322275593,1712927441710,-167.0,0.00023289,2]
[322275594,1712927441719,-300.0,0.00023307,2]
[322275595,1712927441729,-5000.0,0.000235,2]
[322275596,1712927441738,-167.0,0.00023968,2]
[322275597,1712927441748,-942.99202872,0.00024,2]
[322275598,1712927441758,-224.69104562,0.00024,2]
[322275599,1712927441768,-208.18996497,0.00024,2]
[322275600,1712927441778,-1500.0,0.0002408,2]
[322275601,1712927441789,-1031.54558728,0.000241,2]
[322275602,1712927441798,-393.05551189,0.0002421,2]
[322275603,1712927441808,-1204.32814523,0.0002425,2]
[322275604,1712927441818,-152.55374292,0.0002442,2]
[322275605,1712927441828,-281.74817421,0.000245,2]
[322275606,1712927441838,-428.55,0.00024658,2]
[322275607,1712927441848,-541.08,0.00024705,2]
[322275608,1712927441863,-2224.33193293,0.000248,2]
[322275609,1712927441873,-200.0,0.00024857,2]
[322275610,1712927441883,-2602.76416513,0.00025,2]
[322275611,1712927441892,-983.2521172,0.00025,2]
[322275612,1712927441902,-155.2308273,0.00025,2]
[322275613,1712927441912,-103543.52610277,0.00025,2]
[322275614,1712927441923,-155.0,0.00025,2]
[322275615,1712927441938,-155.0,0.00025,2]
[322275616,1712927441948,-562.83036389,0.00025,2]
[322275617,1712927441957,-8077.77748752,0.00025,2]
[322275618,1712927441968,-350.0,0.00025,3]
[322275619,1712927441978,-293.0,0.00025114,2]
[322275620,1712927441988,-2354.3,0.0002534,2]
[322275621,1712927442000,-1000.0,0.00025346,2]
[322275622,1712927442011,-528.0,0.000254,2]
[322275623,1712927442022,-1727.0,0.000255,2]
[322275624,1712927442033,-162.09,0.00025571,2]
[322275625,1712927442042,-1435.975,0.00025765,2]
[322275626,1712927442052,-37497.8579,0.00025765,2]
[322275627,1712927442061,-3358.9298,0.00025765,2]
[322275628,1712927442071,-1000.0,0.00025765,2]
[322275629,1712927442081,-275830.78694956,0.00026,2]
[322275630,1712927442092,-173.07,0.00026546,2]
[322275631,1712927442102,-541.08,0.00026969,2]
[322275632,1712927442112,-1000.0,0.00027,2]
[322275633,1712927442122,-172.64538748,0.00027,2]
[322275634,1712927442132,-188.48061016,0.00027,4]
[322275635,1712927442143,-16166.82052284,0.00027,2]
[322275636,1712927442153,-400.0,0.00027,3]
[322275637,1712927442163,-658.62,0.00027,2]
[322275638,1712927442173,-504.27,0.00027,2]
[322275639,1712927442186,-11023.53,0.00027123,2]
[322275640,1712927442195,-3426.91,0.00027123,2]
[322275641,1712927442205,-200.0,0.00027342,2]
[322275642,1712927442215,-1034884.48441976,0.0002738,2]
[322275643,1712927442227,-500.0,0.00027397,2]
[322275644,1712927442237,-346.29199189,0.00027397,2]
[322275645,1712927442247,-274.62,0.00027397,2]
[322275647,1712927442257,-159.5,0.00027397,2]
[322275649,1712927442267,-188.18411113,0.000275,2]
[322275650,1712927442276,-500.0,0.00027593,2]
[322275651,1712927442286,-25519.0266,0.00027593,2]
[322275652,1712927442296,-411.0,0.00027625,2]
[322275653,1712927442305,-505.98,0.00027797,2]
[322275654,1712927442315,-363.54579695,0.00027874,2]
[322275655,1712927442324,-1000.0,0.00027881,2]
[322275656,1712927442333,-4000.0,0.00027945,5]
[322275658,1712927442343,-20163.40939977,0.00028,2]
[322275660,1712927442353,-6746.82289371,0.00029,2]
[322275662,1712927442362,-561.76868784,0.00029,2]
[322275663,1712927442371,-92562.84962845,0.00029,2]
[322275664,1712927442382,-450.0,0.00029,3]
[322275665,1712927442391,-3000.0,0.00029,2]
[322275666,1712927442401,-150.92,0.00029,2]
[322275668,1712927442410,-150.92,0.00029,2]
[322275670,1712927442420,-150.92,0.00029,2]
[322275672,1712927442429,-150.92,0.00029,2]
[322275673,1712927442441,-150.92,0.00029,2]
[322275674,1712927442450,-150.92,0.00029,2]
[322275675,1712927442459,-150.92,0.00029,2]
[322275677,1712927442470,-150.92,0.00029,2]
[322275678,1712927442479,-150.92,0.00029,2]
[322275679,1712927442489,-150.92,0.00029,2]
[322275680,1712927442498,-150.92,0.00029,2]
[322275681,1712927442507,-150.92,0.00029,2]
[322275682,1712927442517,-150.92,0.00029,2]
[322275683,1712927442526,-150.92,0.00029,2]
[322275684,1712927442535,-150.92,0.00029,2]
[322275685,1712927442544,-150.92,0.00029,2]
[322275686,1712927442554,-150.92,0.00029,2]
[322275687,1712927442563,-150.92,0.00029,2]
[322275688,1712927442572,-150.92,0.00029,2]
[322275689,1712927442581,-150.92,0.00029,2]
[322275690,1712927442591,-150.92,0.00029,2]
[322275691,1712927442600,-150.92,0.00029,2]
[322275692,1712927442609,-150.92,0.00029,2]
[322275693,1712927442619,-150.92,0.00029,2]
[322275694,1712927442628,-150.92,0.00029,2]
[322275695,1712927442638,-150.92,0.00029,2]
[322275696,1712927442647,-150.92,0.00029,2]
[322275697,1712927442657,-150.92,0.00029,2]
[322275698,1712927442666,-150.92,0.00029,2]
[322275699,1712927442675,-150.92,0.00029,2]
[322275700,1712927442695,-150.92,0.00029,2]
[322275701,1712927442705,-150.92,0.00029,2]
[322275702,1712927442714,-150.92,0.00029,2]
[322275703,1712927442724,-150.92,0.00029,2]
[322275704,1712927442734,-150.92,0.00029,2]
[322275705,1712927442743,-150.92,0.00029,2]
[322275706,1712927442753,-150.92,0.00029,2]
[322275707,1712927442763,-150.92,0.00029,2]
[322275708,1712927442772,-150.92,0.00029,2]
[322275709,1712927442782,-150.92,0.00029,2]
[322275710,1712927442791,-150.92,0.00029,2]
[322275711,1712927442802,-150.92,0.00029,2]
[322275712,1712927442811,-3000.0,0.0002901,2]
[322275713,1712927442822,-3000.0,0.0002902,2]
[322275714,1712927442832,-4790.861264,0.0002903,2]
[322275715,1712927442842,-162.09,0.00029224,2]
[322275716,1712927442852,-541.08,0.00029233,2]
[322275717,1712927442861,-200.0,0.00029828,2]
[322275718,1712927442871,-173.07,0.00029864,2]
[322275719,1712927442881,-335.87493834,0.0003,4]
[322275720,1712927442891,-625.8242,0.0003,4]
[322275721,1712927442903,-6941.74361707,0.0003,2]
[322275722,1712927442913,-455.7135509,0.0003,2]
[322275723,1712927442923,-374.75147023,0.0003,2]
[322275724,1712927442936,-346.90489101,0.0003,2]
[322275725,1712927442946,-9381.58683834,0.0003,2]
[322275726,1712927442961,-1700.47655798,0.0003,2]
[322275727,1712927442971,-168.38908209,0.0003,2]
[322275728,1712927442982,-762.33312936,0.0003,2]
[322275729,1712927442993,-206.0,0.0003,2]
[322275730,1712927443003,-552.0,0.00030137,2]
[322275731,1712927443014,-180.0,0.00030258,2]
[322275732,1712927443025,-3121.78729203,0.00030293,2]
[322275733,1712927443035,-1000.0,0.00030415,2]
[322275734,1712927443046,-500.0,0.00031,3]
[322275735,1712927443056,-25000.0,0.00031025,2]
[322275736,1712927443065,-4625.69,0.00031053,2]
[322275737,1712927443075,-5000.0,0.00031061,2]
[322275738,1712927443085,-5000.0,0.00031063,2]
[322275739,1712927443095,-5000.0,0.00031102,2]
[322275740,1712927443105,-1728.91,0.00031102,2]
[322275741,1712927443115,-5000.0,0.00031112,2]
[322275742,1712927443125,-1536.7,0.0003114,2]
[322275743,1712927443135,-1316.52,0.00031144,2]
[322275744,1712927443144,-5000.0,0.00031144,2]
[322275745,1712927443154,-451.24,0.00031151,2]
[322275746,1712927443164,-3119.98,0.00031171,2]
[322275747,1712927443174,-16022.79,0.00031173,2]
[322275748,1712927443186,-5000.0,0.00031202,2]
[322275750,1712927443196,-5000.0,0.0003121,2]
[322275751,1712927443206,-10000.0,0.00031234,2]
[322275752,1712927443215,-5000.0,0.00031288,2]
[322275753,1712927443225,-2501.62,0.00031291,2]
[322275754,1712927443238,-5000.0,0.00031313,2]
[322275755,1712927443248,-25000.0,0.00031334,2]
[322275757,1712927443257,-5000.0,0.00031364,2]
[322275758,1712927443267,-25000.0,0.00031371,2]
[322275759,1712927443277,-10000.0,0.00031386,2]
[322275760,1712927443288,-2501.62,0.00031413,2]
[322275761,1712927443298,-10000.0,0.00031416,2]
[322275762,1712927443307,-25000.0,0.00031439,2]
[322275763,1712927443317,-4576.89,0.00031458,2]
[322275764,1712927443327,-5000.0,0.00031472,2]
[322275765,1712927443337,-5000.0,0.00031476,2]
[322275766,1712927443347,-541.08,0.00031497,2]
[322275767,1712927443357,-4329.55,0.000315,2]
[322275768,1712927443366,-552.0,0.00031507,2]
[322275769,1712927443377,-10000.0,0.00031519,2]
[322275770,1712927443387,-5000.0,0.00031524,2]
[322275771,1712927443397,-995.74,0.00031559,2]
[322275772,1712927443407,-5000.0,0.00031573,2]
[322275773,1712927443417,-5000.0,0.00031636,2]
[322275774,1712927443427,-197.2,0.00031644,2]
[322275775,1712927443439,-603.75,0.00031657,2]
[322275776,1712927443449,-2502.54,0.00031663,2]
[322275777,1712927443459,-5000.0,0.00031697,2]
[322275778,1712927443469,-5000.0,0.00031743,2]
[322275779,1712927443479,-5000.0,0.00031789,2]
[322275780,1712927443490,-5000.0,0.00031793,2]
[322275781,1712927443500,-5000.0,0.00031798,2]
[322275782,1712927443510,-5000.0,0.00031821,2]
[322275783,1712927443520,-5000.0,0.0003185,2]
[322275784,1712927443530,-5000.0,0.00031866,2]
[322275785,1712927443540,-5000.0,0.0003187,2]
[322275786,1712927443549,-2502.54,0.00031873,2]
[322275787,1712927443559,-8215.76,0.00031893,2]
[322275788,1712927443569,-10000.0,0.00031895,2]
[322275789,1712927443579,-25000.0,0.00031922,2]
[322275790,1712927443589,-3445.22,0.00031932,2]
[322275791,1712927443598,-2889.58,0.00031938,2]
[322275792,1712927443608,-5000.0,0.00031952,2]
[322275793,1712927443618,-5000.0,0.00031966,2]
[322275794,1712927443627,-25000.0,0.00031986,2]
[322275795,1712927443637,-11000.0,0.00032,2]
[322275796,1712927443648,-332.95119539,0.00032,4]
[322275797,1712927443659,-1500.78124376,0.00032,3]
[322275798,1712927443669,-16808.68664119,0.000323,2]
[322275799,1712927443679,-7297.0442117,0.000324,2]
[322275800,1712927443690,-658.62,0.000324,2]
[322275801,1712927443700,-504.27,0.000324,2]
[322275802,1712927443709,-611.07740058,0.000326,20]
[322275803,1712927443720,-12230.74,0.00032603,2]
[322275804,1712927443730,-5070.77,0.00032603,2]
[322275805,1712927443741,-3530.18155433,0.000328,2]
[322275806,1712927443753,-552.0,0.00032876,2]
[322275807,1712927443763,-362.69656796,0.00032876,2]
[322275808,1712927443773,-426.74342867,0.00032876,2]
[322275809,1712927443783,-385.24777011,0.00032876,2]
[322275810,1712927443793,-500.0,0.00032876,2]
[322275811,1712927443803,-250.96557924,0.00032876,2]
[322275812,1712927443813,-500.0,0.00032876,2]
[322275813,1712927443822,-500.0,0.00032876,2]
[322275814,1712927443833,-500.0,0.00032876,2]
[322275815,1712927443843,-500.0,0.00032876,2]
[322275816,1712927443853,-500.0,0.00032876,2]
[322275817,1712927443863,-500.0,0.00032876,2]
[322275818,1712927443873,-500.0,0.00032876,2]
[322275819,1712927443883,-500.0,0.00032876,2]
[322275820,1712927443892,-500.0,0.00032876,2]
[322275821,1712927443903,-500.0,0.00032876,2]
[322275822,1712927443912,-500.0,0.00032876,2]
[322275823,1712927443924,-541.53361371,0.00032876,2]
[322275824,1712927443936,-500.0,0.00032876,2]
[322275825,1712927443945,-344.11050393,0.00032876,2]
[322275826,1712927443958,-450.0,0.00032876,2]
[322275827,1712927443969,-2629.09,0.00032876,2]
[322275828,1712927443981,-2629.09,0.00032876,2]
[322275829,1712927443991,-2629.09,0.00032876,2]
[322275830,1712927444001,-2629.09,0.00032876,2]
[322275831,1712927444010,-2629.09,0.00032876,2]
[322275832,1712927444020,-2629.09,0.00032876,2]
[322275833,1712927444030,-2629.09,0.00032876,2]
[322275834,1712927444040,-2629.09,0.00032876,2]
[322275835,1712927444049,-2629.09,0.00032876,2]
[322275836,1712927444060,-2629.09,0.00032876,2]
[322275837,1712927444069,-2629.09,0.00032876,2]
[322275838,1712927444079,-2629.09,0.00032876,2]
[322275839,1712927444088,-2629.09,0.00032876,2]
[322275840,1712927444098,-2629.09,0.00032876,2]
[322275841,1712927444108,-2629.09,0.00032876,2]
[322275842,1712927444117,-2629.09,0.00032876,2]
[322275843,1712927444127,-2629.09,0.00032876,2]
[322275844,1712927444136,-2629.09,0.00032876,2]
[322275845,1712927444146,-2629.09,0.00032876,2]
[322275846,1712927444155,-2629.09,0.00032876,2]
[322275847,1712927444165,-2629.09,0.00032876,2]
[322275848,1712927444175,-2629.09,0.00032876,2]
[322275849,1712927444187,-2629.09,0.00032876,2]
[322275850,1712927444196,-2629.10938748,0.00032876,2]
[322275851,1712927444206,-162.09,0.00032877,2]
[322275852,1712927444216,-150.91,0.00032877,2]
[322275853,1712927444225,-170.3395982,0.00032877,30]
[322275854,1712927444235,-550.0,0.00033,3]
[322275855,1712927444244,-972.68108238,0.00033,2]
[322275856,1712927444253,-153.24126342,0.00033145,7]
[322275857,1712927444263,-274.62,0.00033165,2]
[322275858,1712927444273,-154.53423204,0.00033216,7]
[322275859,1712927444283,-153.24126342,0.0003325,7]
[322275860,1712927444293,-154.58,0.000333,2]
[322275861,1712927444303,-154.58,0.000333,2]
[322275862,1712927444313,-154.58,0.000333,2]
[322275863,1712927444323,-154.58,0.000333,2]
[322275864,1712927444337,-154.58,0.000333,2]